[Event "*** Titled Tuesday Blitz"]
[Site "Chess.com"]
[Date "2020.05.26"]
[Round "3"]
[White "WhiteCapital80"]
[Black "MrMatesM"]
[Result "1/2-1/2"]
[WhiteElo "2408"]
[BlackElo "2595"]
[TimeControl "180+1"]
[EndTime "10:29:47 PDT"]
[Termination "Game drawn by repetition"]

1. e4 {[%clk 0:03:00.9]} 1... c5 {[%clk 0:02:59.9]} 2. Nf3 {[%clk 0:03:00.8]}
2... d6 {[%clk 0:03:00.4]} 3. d4 {[%clk 0:03:01.1]} 3... cxd4 {[%clk 0:03:01.3]}
4. Nxd4 {[%clk 0:03:01.3]} 4... Nf6 {[%clk 0:03:01.6]} 5. Nc3 {[%clk 0:03:01.3]}
5... a6 {[%clk 0:03:02.1]} 6. Be2 {[%clk 0:03:01.2]} 6... e5 {[%clk 0:03:02.2]}
7. Nb3 {[%clk 0:03:01.1]} 7... Be7 {[%clk 0:03:02.7]} 8. O-O {[%clk 0:03:01]}
8... O-O {[%clk 0:03:03.1]} 9. Kh1 {[%clk 0:03:01.3]} 9... b5 {[%clk 0:03:03.1]}
10. a4 {[%clk 0:03:00.9]} 10... b4 {[%clk 0:03:03.4]} 11. Nd5 {[%clk 0:03:01]}
11... Nxd5 {[%clk 0:03:03.1]} 12. Qxd5 {[%clk 0:03:00.3]} 12... Ra7 {[%clk
0:03:03.6]} 13. Be3 {[%clk 0:02:59.4]} 13... Be6 {[%clk 0:03:03.8]} 14. Qd2
{[%clk 0:02:57.1]} 14... Rb7 {[%clk 0:03:00.2]} 15. f4 {[%clk 0:02:48.7]} 15...
Qc7 {[%clk 0:02:46.7]} 16. f5 {[%clk 0:02:45.7]} 16... Bd7 {[%clk 0:02:38.2]}
17. Rad1 {[%clk 0:02:36.7]} 17... a5 {[%clk 0:02:35.9]} 18. Bd3 {[%clk
0:02:18.5]} 18... Bc6 {[%clk 0:02:28.7]} 19. f6 {[%clk 0:02:08.7]} 19... Bxf6
{[%clk 0:02:28.1]} 20. Rxf6 {[%clk 0:02:08.2]} 20... gxf6 {[%clk 0:02:28.4]} 21.
Bh6 {[%clk 0:02:07.8]} 21... Nd7 {[%clk 0:02:18.4]} 22. Qf2 {[%clk 0:02:05.3]}
22... Kh8 {[%clk 0:02:13.4]} 23. Bxf8 {[%clk 0:02:04.5]} 23... Nxf8 {[%clk
0:02:13.5]} 24. Qxf6+ {[%clk 0:02:04.4]} 24... Kg8 {[%clk 0:02:13.5]} 25. h4
{[%clk 0:01:40.4]} 25... Bxa4 {[%clk 0:02:11.4]} 26. Qg5+ {[%clk 0:01:39.5]}
26... Kh8 {[%clk 0:02:09.7]} 27. Qf6+ {[%clk 0:01:39.6]} 27... Kg8 {[%clk
0:02:06.1]} 28. Qg5+ {[%clk 0:01:17.4]} 28... Ng6 {[%clk 0:01:50.1]} 29. h5
{[%clk 0:01:17.1]} 29... Qe7 {[%clk 0:01:50.5]} 30. Qg3 {[%clk 0:01:07.6]} 30...
Qh4+ {[%clk 0:01:50.1]} 31. Qxh4 {[%clk 0:01:07.9]} 31... Nxh4 {[%clk 0:01:51]}
32. Nxa5 {[%clk 0:01:08.1]} 32... Rc7 {[%clk 0:01:49.2]} 33. b3 {[%clk
0:01:04.1]} 33... Bd7 {[%clk 0:01:48.6]} 34. Nc4 {[%clk 0:01:03.9]} 34... Bg4
{[%clk 0:01:48.1]} 35. Ra1 {[%clk 0:01:02.7]} 35... Rd7 {[%clk 0:01:33.1]} 36.
Ra6 {[%clk 0:00:58.5]} 36... Bxh5 {[%clk 0:01:31.9]} 37. Nxd6 {[%clk 0:00:58.2]}
37... Bg4 {[%clk 0:01:10.8]} 38. Ra8+ {[%clk 0:00:52.8]} 38... Kg7 {[%clk
0:01:11]} 39. Ne8+ {[%clk 0:00:52.7]} 39... Kg6 {[%clk 0:01:10.8]} 40. Kh2
{[%clk 0:00:43.3]} 40... Kg5 {[%clk 0:01:03.5]} 41. Ng7 {[%clk 0:00:37.7]} 41...
Ng6 {[%clk 0:01:01.7]} 42. g3 {[%clk 0:00:35.8]} 42... Bd1 {[%clk 0:00:56.5]}
43. Rc8 {[%clk 0:00:32.3]} 43... h5 {[%clk 0:00:54.9]} 44. Nf5 {[%clk
0:00:31.4]} 44... h4 {[%clk 0:00:53.9]} 45. gxh4+ {[%clk 0:00:31.2]} 45... Nxh4
{[%clk 0:00:54.3]} 46. Nxh4 {[%clk 0:00:31.2]} 46... Kxh4 {[%clk 0:00:54.6]} 47.
Rc4 {[%clk 0:00:30.9]} 47... Rd4 {[%clk 0:00:53.6]} 48. Rc5 {[%clk 0:00:22.6]}
48... f6 {[%clk 0:00:52.3]} 49. Rc6 {[%clk 0:00:22]} 49... Kg5 {[%clk
0:00:52.1]} 50. Kg3 {[%clk 0:00:22.4]} 50... Bh5 {[%clk 0:00:45.3]} 51. Rc8
{[%clk 0:00:21.9]} 51... Bg6 {[%clk 0:00:44.7]} 52. Rc4 {[%clk 0:00:20.9]} 52...
Bf7 {[%clk 0:00:38.7]} 53. Rxd4 {[%clk 0:00:20.6]} 53... exd4 {[%clk 0:00:39]}
54. Kf3 {[%clk 0:00:20.4]} 54... Bh5+ {[%clk 0:00:38.7]} 55. Kg3 {[%clk
0:00:20.5]} 55... Bd1 {[%clk 0:00:38.8]} 56. Kf2 {[%clk 0:00:19.1]} 56... Kf4
{[%clk 0:00:38.7]} 57. Ke1 {[%clk 0:00:19.5]} 57... Bg4 {[%clk 0:00:38.6]} 58.
Kf2 {[%clk 0:00:19.3]} 58... Bd7 {[%clk 0:00:35.7]} 59. Ke1 {[%clk 0:00:16.9]}
59... Bc6 {[%clk 0:00:36.1]} 60. Kd2 {[%clk 0:00:17.4]} 60... Bxe4 {[%clk
0:00:36.7]} 61. Bc4 {[%clk 0:00:18]} 61... Bg6 {[%clk 0:00:35.8]} 62. Bd5 {[%clk
0:00:17.9]} 62... Kg3 {[%clk 0:00:34.4]} 63. Be6 {[%clk 0:00:17.6]} 63... f5
{[%clk 0:00:34.5]} 64. Kd3 {[%clk 0:00:17]} 64... f4+ {[%clk 0:00:34.9]} 65.
Kxd4 {[%clk 0:00:17.4]} 65... Bxc2 {[%clk 0:00:34.5]} 66. Bd5 {[%clk 0:00:15.9]}
66... Kf2 {[%clk 0:00:30.2]} 67. Kc4 {[%clk 0:00:15.8]} 67... Ke3 {[%clk
0:00:30.5]} 68. Kxb4 {[%clk 0:00:14.6]} 68... Be4 {[%clk 0:00:30.9]} 69. Bc4
{[%clk 0:00:14.5]} 69... f3 {[%clk 0:00:30.6]} 70. Kc3 {[%clk 0:00:14.7]} 70...
Bf5 {[%clk 0:00:29]} 71. b4 {[%clk 0:00:14.2]} 71... Bg4 {[%clk 0:00:27.7]} 72.
b5 {[%clk 0:00:14.5]} 72... f2 {[%clk 0:00:28.6]} 73. b6 {[%clk 0:00:14.9]}
73... Bf3 {[%clk 0:00:27.6]} 74. Kb4 {[%clk 0:00:12.1]} 74... Kd4 {[%clk
0:00:27.7]} 75. Ba6 {[%clk 0:00:11.2]} 75... Bd5 {[%clk 0:00:26.1]} 76. Bf1
{[%clk 0:00:10.7]} 76... Bf3 {[%clk 0:00:25.6]} 77. Kb5 {[%clk 0:00:10.7]} 77...
Ke3 {[%clk 0:00:25.1]} 78. Ka6 {[%clk 0:00:10.1]} 78... Be2+ {[%clk 0:00:25.5]}
79. Bxe2 {[%clk 0:00:10.1]} 79... Kxe2 {[%clk 0:00:26.4]} 80. b7 {[%clk
0:00:10.7]} 80... f1=Q {[%clk 0:00:26.2]} 81. b8=Q {[%clk 0:00:11.1]} 81... Kd2+
{[%clk 0:00:26.8]} 82. Ka7 {[%clk 0:00:08.9]} 82... Qf2+ {[%clk 0:00:26.4]} 83.
Qb6 {[%clk 0:00:09]} 83... Qf7+ {[%clk 0:00:27]} 84. Qb7 {[%clk 0:00:09.4]}
84... Qe6 {[%clk 0:00:27.1]} 85. Qb6 {[%clk 0:00:09.7]} 85... Qe5 {[%clk
0:00:27.2]} 86. Qb7 {[%clk 0:00:09.5]} 86... Qa1+ {[%clk 0:00:27.8]} 87. Qa6
{[%clk 0:00:09.7]} 87... Qd4+ {[%clk 0:00:28.2]} 88. Qb6 {[%clk 0:00:10]} 88...
Qa4+ {[%clk 0:00:28.7]} 89. Qa6 {[%clk 0:00:10.3]} 89... Qd7+ {[%clk 0:00:29]}
90. Qb7 {[%clk 0:00:10.8]} 90... Qa4+ {[%clk 0:00:29.4]} 91. Qa6 {[%clk
0:00:11.2]} 91... Qd7+ {[%clk 0:00:29.7]} 92. Qb7 {[%clk 0:00:10]} 92... Qa4+
{[%clk 0:00:30.3]} 93. Qa6 {[%clk 0:00:09.9]} 1/2-1/2

[Event "*** Titled Tuesday Blitz"]
[Site "Chess.com"]
[Date "2020.05.26"]
[Round "3"]
[White "NotFischer"]
[Black "Denis_Palkovich"]
[Result "0-1"]
[WhiteElo "2131"]
[BlackElo "2315"]
[TimeControl "180+1"]
[EndTime "10:29:48 PDT"]
[Termination "Denis_Palkovich won on time"]

1. e4 {[%clk 0:03:00.9]} 1... d5 {[%clk 0:02:58.4]} 2. exd5 {[%clk 0:02:59.8]}
2... Nf6 {[%clk 0:02:58.5]} 3. Nf3 {[%clk 0:02:55]} 3... Nxd5 {[%clk 0:02:58.3]}
4. d4 {[%clk 0:02:53.2]} 4... g6 {[%clk 0:02:57.9]} 5. c4 {[%clk 0:02:52.9]}
5... Nb6 {[%clk 0:02:57.4]} 6. Nc3 {[%clk 0:02:53.5]} 6... Bg7 {[%clk
0:02:57.4]} 7. Be3 {[%clk 0:02:54.1]} 7... O-O {[%clk 0:02:57.2]} 8. Qd2 {[%clk
0:02:54.6]} 8... Bg4 {[%clk 0:02:53.3]} 9. Be2 {[%clk 0:02:40]} 9... Nc6 {[%clk
0:02:51.9]} 10. O-O-O {[%clk 0:02:38.6]} 10... e5 {[%clk 0:02:26.5]} 11. Nxe5
{[%clk 0:01:51.5]} 11... Nxe5 {[%clk 0:02:19.6]} 12. dxe5 {[%clk 0:01:38.7]}
12... Qxd2+ {[%clk 0:02:16.8]} 13. Rxd2 {[%clk 0:01:36.9]} 13... Bxe2 {[%clk
0:02:14.6]} 14. Rxe2 {[%clk 0:01:37.3]} 14... Nxc4 {[%clk 0:02:13.8]} 15. Bd4
{[%clk 0:01:31.7]} 15... b6 {[%clk 0:01:54.3]} 16. f4 {[%clk 0:01:31.2]} 16...
c5 {[%clk 0:01:45.8]} 17. Bf2 {[%clk 0:01:31]} 17... Bh6 {[%clk 0:01:29]} 18. g3
{[%clk 0:01:30.1]} 18... Rae8 {[%clk 0:01:02.7]} 19. b3 {[%clk 0:01:29.3]} 19...
Nxe5 {[%clk 0:01:00.5]} 20. Kc2 {[%clk 0:01:24.4]} 20... Nc6 {[%clk 0:00:58.1]}
21. Rhe1 {[%clk 0:01:19.6]} 21... Rxe2+ {[%clk 0:00:53.7]} 22. Rxe2 {[%clk
0:01:19.8]} 22... Bg7 {[%clk 0:00:51.5]} 23. Nd5 {[%clk 0:01:16.4]} 23... Rd8
{[%clk 0:00:47.7]} 24. Ne7+ {[%clk 0:01:13.6]} 24... Nxe7 {[%clk 0:00:45]} 25.
Rxe7 {[%clk 0:01:14.5]} 25... Ra8 {[%clk 0:00:38.4]} 26. f5 {[%clk 0:01:07.6]}
26... Bf6 {[%clk 0:00:34]} 27. Rd7 {[%clk 0:01:06.3]} 27... gxf5 {[%clk
0:00:30.1]} 28. Be3 {[%clk 0:01:06.2]} 28... Kg7 {[%clk 0:00:23.9]} 29. Bf4
{[%clk 0:01:03.9]} 29... Kg6 {[%clk 0:00:24.1]} 30. h4 {[%clk 0:01:02.6]} 30...
h5 {[%clk 0:00:23.9]} 31. Rd6 {[%clk 0:01:02.2]} 31... Kg7 {[%clk 0:00:22.8]}
32. Bh6+ {[%clk 0:01:00.2]} 32... Kxh6 {[%clk 0:00:20.2]} 33. Rxf6+ {[%clk
0:01:00.2]} 33... Kg7 {[%clk 0:00:19.9]} 34. Rxf5 {[%clk 0:01:01]} 34... Kg6
{[%clk 0:00:19.4]} 35. Rg5+ {[%clk 0:01:01]} 35... Kh6 {[%clk 0:00:19.6]} 36.
Rf5 {[%clk 0:01:01.2]} 36... Kg6 {[%clk 0:00:19.4]} 37. Rg5+ {[%clk 0:01:01.7]}
37... Kh6 {[%clk 0:00:19.7]} 38. Rd5 {[%clk 0:01:02.6]} 38... Re8 {[%clk
0:00:17.3]} 39. Rd7 {[%clk 0:01:01.1]} 39... Kg6 {[%clk 0:00:16.4]} 40. Rxa7
{[%clk 0:01:00.3]} 40... Re3 {[%clk 0:00:16.4]} 41. Rb7 {[%clk 0:01:00.1]} 41...
Rxg3 {[%clk 0:00:15.9]} 42. Rxb6+ {[%clk 0:01:00.7]} 42... Kf5 {[%clk
0:00:15.5]} 43. a4 {[%clk 0:01:01.3]} 43... Kg4 {[%clk 0:00:14.1]} 44. a5 {[%clk
0:01:01.8]} 44... Rg1 {[%clk 0:00:13.1]} 45. a6 {[%clk 0:01:02.2]} 45... Ra1
{[%clk 0:00:12.8]} 46. Rh6 {[%clk 0:01:02.1]} 46... Kxh4 {[%clk 0:00:12.4]} 47.
Kc3 {[%clk 0:01:01.4]} 47... Kg5 {[%clk 0:00:12.8]} 48. Rh7 {[%clk 0:01:00.5]}
48... f5 {[%clk 0:00:12.5]} 49. Kc4 {[%clk 0:01:00]} 49... Rxa6 {[%clk
0:00:12.5]} 50. Kxc5 {[%clk 0:00:58.2]} 50... Ra1 {[%clk 0:00:13.1]} 51. b4
{[%clk 0:00:57.3]} 51... Rc1+ {[%clk 0:00:12.5]} 52. Kd6 {[%clk 0:00:56.7]}
52... Rb1 {[%clk 0:00:11.6]} 53. Kc5 {[%clk 0:00:56.1]} 53... f4 {[%clk
0:00:11.6]} 54. b5 {[%clk 0:00:55.9]} 54... Kg4 {[%clk 0:00:11.8]} 55. b6 {[%clk
0:00:55.1]} 55... h4 {[%clk 0:00:12]} 56. Kc6 {[%clk 0:00:54.6]} 56... f3 {[%clk
0:00:11.5]} 57. b7 {[%clk 0:00:54.5]} 57... Kg3 {[%clk 0:00:10.3]} 58. Rg7+
{[%clk 0:00:53.6]} 58... Kh2 {[%clk 0:00:08.7]} 59. Kc7 {[%clk 0:00:52.4]} 59...
h3 {[%clk 0:00:08]} 60. b8=Q {[%clk 0:00:51.2]} 60... Rxb8 {[%clk 0:00:07.5]}
61. Kxb8 {[%clk 0:00:52.1]} 61... f2 {[%clk 0:00:08]} 62. Rf7 {[%clk 0:00:51.8]}
62... Kg1 {[%clk 0:00:08.1]} 63. Rg7+ {[%clk 0:00:51.6]} 63... Kh2 {[%clk
0:00:07.1]} 64. Rf7 {[%clk 0:00:50.9]} 64... Kg2 {[%clk 0:00:07]} 65. Rg7+
{[%clk 0:00:50.8]} 65... Kf3 {[%clk 0:00:07.5]} 66. Rf7+ {[%clk 0:00:50.6]}
66... Ke2 {[%clk 0:00:07.7]} 67. Re7+ {[%clk 0:00:49.9]} 67... Kd2 {[%clk
0:00:07.8]} 68. Rf7 {[%clk 0:00:49.2]} 68... Ke3 {[%clk 0:00:05.2]} 69. Re7+
{[%clk 0:00:48.6]} 69... Kd2 {[%clk 0:00:03.2]} 70. Rf7 {[%clk 0:00:48.4]} 70...
Ke2 {[%clk 0:00:03.4]} 71. Re7+ {[%clk 0:00:47.9]} 71... Kd3 {[%clk 0:00:03.6]}
72. Rf7 {[%clk 0:00:47.8]} 72... h2 {[%clk 0:00:03.7]} 73. Rxf2 {[%clk
0:00:42.7]} 73... h1=Q {[%clk 0:00:03.4]} 74. Rf7 {[%clk 0:00:32.5]} 74... Qe4
{[%clk 0:00:03.8]} 75. Rc7 {[%clk 0:00:31.8]} 75... Kd4 {[%clk 0:00:03.6]} 76.
Kc8 {[%clk 0:00:31.7]} 76... Qe5 {[%clk 0:00:03.8]} 77. Rd7+ {[%clk 0:00:31.8]}
77... Kc5 {[%clk 0:00:03.7]} 78. Rc7+ {[%clk 0:00:31.8]} 78... Kd5 {[%clk
0:00:04]} 79. Rd7+ {[%clk 0:00:31.9]} 79... Kc6 {[%clk 0:00:03.6]} 0-1

[Event "*** Titled Tuesday Blitz"]
[Site "Chess.com"]
[Date "2020.05.26"]
[Round "3"]
[White "RobPeresian"]
[Black "MartinCerveny"]
[Result "1/2-1/2"]
[WhiteElo "2316"]
[BlackElo "2505"]
[TimeControl "180+1"]
[EndTime "10:29:50 PDT"]
[Termination "Game drawn by repetition"]

1. Nf3 {[%clk 0:02:58.8]} 1... d5 {[%clk 0:02:59.4]} 2. d4 {[%clk 0:02:58.4]}
2... Nf6 {[%clk 0:02:59.6]} 3. c4 {[%clk 0:02:58.5]} 3... c6 {[%clk 0:02:59.4]}
4. Nc3 {[%clk 0:02:58.6]} 4... a6 {[%clk 0:02:59.4]} 5. cxd5 {[%clk 0:02:58.1]}
5... cxd5 {[%clk 0:02:59.5]} 6. Bf4 {[%clk 0:02:58.7]} 6... Nc6 {[%clk
0:02:59.2]} 7. e3 {[%clk 0:02:58.8]} 7... e6 {[%clk 0:02:56.7]} 8. Rc1 {[%clk
0:02:57.7]} 8... Be7 {[%clk 0:02:55.9]} 9. Bd3 {[%clk 0:02:55.3]} 9... O-O
{[%clk 0:02:55.8]} 10. O-O {[%clk 0:02:55.5]} 10... Bd7 {[%clk 0:02:53.7]} 11.
Na4 {[%clk 0:02:54.9]} 11... Nb4 {[%clk 0:02:31.3]} 12. Bb1 {[%clk 0:02:53.6]}
12... Bxa4 {[%clk 0:02:30.6]} 13. Qxa4 {[%clk 0:02:52.7]} 13... Nc6 {[%clk
0:02:30.2]} 14. h3 {[%clk 0:02:39]} 14... Qb6 {[%clk 0:02:27.5]} 15. Rc2 {[%clk
0:02:22.9]} 15... Qb5 {[%clk 0:02:23.3]} 16. Qxb5 {[%clk 0:02:16.3]} 16... axb5
{[%clk 0:02:24.2]} 17. a3 {[%clk 0:02:15.4]} 17... Nd7 {[%clk 0:02:23.5]} 18.
Rfc1 {[%clk 0:02:05.4]} 18... Rfc8 {[%clk 0:02:20.4]} 19. Rc3 {[%clk 0:02:01]}
19... f6 {[%clk 0:02:15.5]} 20. Bd3 {[%clk 0:01:59.1]} 20... b4 {[%clk 0:02:16]}
21. axb4 {[%clk 0:01:58.8]} 21... Bxb4 {[%clk 0:02:15.8]} 22. Rb3 {[%clk
0:01:54.1]} 22... e5 {[%clk 0:01:53.7]} 23. Bf5 {[%clk 0:01:51.3]} 23... exf4
{[%clk 0:01:22.3]} 24. Bxd7 {[%clk 0:01:48.2]} 24... Rcb8 {[%clk 0:01:22]} 25.
Be6+ {[%clk 0:01:43]} 25... Kf8 {[%clk 0:01:21.3]} 26. Bxd5 {[%clk 0:01:43]}
26... fxe3 {[%clk 0:01:18.3]} 27. fxe3 {[%clk 0:01:41.5]} 27... Bd6 {[%clk
0:01:13.8]} 28. Bxc6 {[%clk 0:01:29.4]} 28... bxc6 {[%clk 0:01:12.8]} 29. Rxb8+
{[%clk 0:01:29]} 29... Rxb8 {[%clk 0:01:13.7]} 30. Rxc6 {[%clk 0:01:28.8]} 30...
Ke7 {[%clk 0:01:13.2]} 31. Rc2 {[%clk 0:01:27.9]} 31... f5 {[%clk 0:01:13.8]}
32. g4 {[%clk 0:01:24.1]} 32... g6 {[%clk 0:01:12]} 33. Kf2 {[%clk 0:01:18]}
33... Ke6 {[%clk 0:01:12]} 34. Ke2 {[%clk 0:01:17.6]} 34... Kd5 {[%clk
0:01:11.2]} 35. gxf5 {[%clk 0:01:14.6]} 35... gxf5 {[%clk 0:01:11.4]} 36. Nd2
{[%clk 0:01:08.1]} 36... Rg8 {[%clk 0:01:04.1]} 37. b3 {[%clk 0:00:30.3]} 37...
Rg2+ {[%clk 0:00:54.8]} 38. Kd3 {[%clk 0:00:29.4]} 38... Rg3 {[%clk 0:00:54.1]}
39. Nc4 {[%clk 0:00:27.8]} 39... f4 {[%clk 0:00:41.2]} 40. h4 {[%clk 0:00:21.3]}
40... Be7 {[%clk 0:00:32.6]} 41. Rf2 {[%clk 0:00:19.2]} 41... f3 {[%clk
0:00:29]} 42. e4+ {[%clk 0:00:19.2]} 42... Ke6 {[%clk 0:00:28.7]} 43. Ne5 {[%clk
0:00:18.3]} 43... Bxh4 {[%clk 0:00:25.1]} 44. Rxf3 {[%clk 0:00:18.6]} 44... Rg2
{[%clk 0:00:22.3]} 45. Rh3 {[%clk 0:00:18.1]} 45... Bf6 {[%clk 0:00:21.3]} 46.
Nf3 {[%clk 0:00:18.2]} 46... Rg7 {[%clk 0:00:20.1]} 47. e5 {[%clk 0:00:17.2]}
47... Bd8 {[%clk 0:00:18.4]} 48. Ke4 {[%clk 0:00:17.1]} 48... Rg4+ {[%clk
0:00:17.6]} 49. Ke3 {[%clk 0:00:17.2]} 49... Rg7 {[%clk 0:00:18.5]} 50. b4
{[%clk 0:00:13.5]} 50... Rb7 {[%clk 0:00:17.5]} 51. Ke4 {[%clk 0:00:12.2]} 51...
Rxb4 {[%clk 0:00:15.8]} 52. Rxh7 {[%clk 0:00:12]} 52... Be7 {[%clk 0:00:16.2]}
53. Rh6+ {[%clk 0:00:10.8]} 53... Kd7 {[%clk 0:00:15.4]} 54. Kd5 {[%clk
0:00:09.2]} 54... Rb5+ {[%clk 0:00:15]} 55. Ke4 {[%clk 0:00:07.9]} 55... Rb1
{[%clk 0:00:15.9]} 56. Nd2 {[%clk 0:00:07.8]} 56... Rd1 {[%clk 0:00:14.9]} 57.
Nc4 {[%clk 0:00:06.7]} 57... Rb1 {[%clk 0:00:14.9]} 58. d5 {[%clk 0:00:06]}
58... Re1+ {[%clk 0:00:14.1]} 59. Kf5 {[%clk 0:00:02.4]} 59... Rf1+ {[%clk
0:00:14.2]} 60. Kg6 {[%clk 0:00:02.6]} 60... Rg1+ {[%clk 0:00:14.2]} 61. Kf7
{[%clk 0:00:03]} 61... Rf1+ {[%clk 0:00:14.5]} 62. Kg7 {[%clk 0:00:01.9]} 62...
Rc1 {[%clk 0:00:13.5]} 63. e6+ {[%clk 0:00:01.9]} 63... Kc7 {[%clk 0:00:11.5]}
64. d6+ {[%clk 0:00:02.2]} 64... Bxd6 {[%clk 0:00:11]} 65. Nxd6 {[%clk
0:00:03.1]} 65... Kxd6 {[%clk 0:00:11.9]} 66. Kf7 {[%clk 0:00:04]} 66... Rc7+
{[%clk 0:00:09.4]} 67. Kf6 {[%clk 0:00:04.4]} 67... Re7 {[%clk 0:00:08.6]} 68.
Kf5 {[%clk 0:00:03.5]} 68... Rg7 {[%clk 0:00:08.4]} 69. Rh1 {[%clk 0:00:03.2]}
69... Ke7 {[%clk 0:00:07.6]} 70. Rd1 {[%clk 0:00:03.6]} 70... Rg8 {[%clk
0:00:07.3]} 71. Rd7+ {[%clk 0:00:03.7]} 71... Ke8 {[%clk 0:00:07]} 72. Kf6
{[%clk 0:00:04.2]} 72... Rg1 {[%clk 0:00:06.2]} 73. Ra7 {[%clk 0:00:01.9]} 73...
Rf1+ {[%clk 0:00:06.6]} 74. Ke5 {[%clk 0:00:02.2]} 74... Re1+ {[%clk 0:00:06.4]}
75. Kd6 {[%clk 0:00:02.5]} 75... Rd1+ {[%clk 0:00:06.7]} 76. Ke5 {[%clk
0:00:03.1]} 76... Re1+ {[%clk 0:00:07]} 77. Kf6 {[%clk 0:00:03.8]} 77... Rf1+
{[%clk 0:00:07.2]} 78. Ke5 {[%clk 0:00:04.2]} 78... Re1+ {[%clk 0:00:07.4]}
1/2-1/2

[Event "*** Titled Tuesday Blitz"]
[Site "Chess.com"]
[Date "2020.05.26"]
[Round "3"]
[White "GoltsevDmitry2000"]
[Black "mishanick"]
[Result "1-0"]
[WhiteElo "2692"]
[BlackElo "2953"]
[TimeControl "180+1"]
[EndTime "10:29:59 PDT"]
[Termination "GoltsevDmitry2000 won by resignation"]

1. e4 {[%clk 0:03:00]} 1... c5 {[%clk 0:02:37.4]} 2. Nf3 {[%clk 0:02:59.9]} 2...
d6 {[%clk 0:02:37.6]} 3. d4 {[%clk 0:03:00.3]} 3... cxd4 {[%clk 0:02:38.5]} 4.
Nxd4 {[%clk 0:03:01.2]} 4... Nf6 {[%clk 0:02:39]} 5. Nc3 {[%clk 0:03:01.4]} 5...
a6 {[%clk 0:02:37.3]} 6. a4 {[%clk 0:03:00.5]} 6... e5 {[%clk 0:02:36.2]} 7. Nb3
{[%clk 0:02:59.7]} 7... Be7 {[%clk 0:02:35.2]} 8. Be2 {[%clk 0:02:59.2]} 8...
Be6 {[%clk 0:02:31.6]} 9. Be3 {[%clk 0:02:57.2]} 9... Nc6 {[%clk 0:02:27]} 10.
Nd5 {[%clk 0:02:51.9]} 10... Bxd5 {[%clk 0:02:19.9]} 11. exd5 {[%clk 0:02:51.4]}
11... Nb4 {[%clk 0:02:20.4]} 12. c4 {[%clk 0:02:39.3]} 12... a5 {[%clk
0:02:15.1]} 13. O-O {[%clk 0:02:35.8]} 13... b6 {[%clk 0:02:14.9]} 14. f4 {[%clk
0:02:18.8]} 14... Nd7 {[%clk 0:02:11.1]} 15. fxe5 {[%clk 0:02:16.9]} 15... Nxe5
{[%clk 0:02:10.2]} 16. Nd4 {[%clk 0:02:13.8]} 16... O-O {[%clk 0:02:03.6]} 17.
Qd2 {[%clk 0:02:08.7]} 17... Re8 {[%clk 0:01:54.2]} 18. Nf5 {[%clk 0:02:03.5]}
18... Bf8 {[%clk 0:01:51.2]} 19. b3 {[%clk 0:01:50.6]} 19... Na6 {[%clk
0:01:50.1]} 20. Rae1 {[%clk 0:01:42.9]} 20... Nc5 {[%clk 0:01:50.2]} 21. Bxc5
{[%clk 0:01:42.2]} 21... bxc5 {[%clk 0:01:48.8]} 22. Bd1 {[%clk 0:01:42.2]}
22... g6 {[%clk 0:01:46.6]} 23. Ng3 {[%clk 0:01:28.6]} 23... f5 {[%clk
0:01:42.4]} 24. Ne2 {[%clk 0:01:26.9]} 24... Qf6 {[%clk 0:01:26.9]} 25. Nc3
{[%clk 0:01:21.6]} 25... Qh4 {[%clk 0:01:04.8]} 26. Nb5 {[%clk 0:01:14.3]} 26...
Bh6 {[%clk 0:01:00.7]} 27. Qc3 {[%clk 0:00:58]} 27... Qe7 {[%clk 0:00:45.8]} 28.
Re2 {[%clk 0:00:33.9]} 28... Bg7 {[%clk 0:00:45.1]} 29. Qd2 {[%clk 0:00:30.3]}
29... h5 {[%clk 0:00:42.4]} 30. Rfe1 {[%clk 0:00:27.9]} 30... Kh7 {[%clk
0:00:42.4]} 31. Bc2 {[%clk 0:00:27.9]} 31... Bh6 {[%clk 0:00:32.2]} 32. Qc3
{[%clk 0:00:27.2]} 32... Bg7 {[%clk 0:00:32.4]} 33. Qd2 {[%clk 0:00:27.2]} 33...
Qd7 {[%clk 0:00:31.3]} 34. Qf4 {[%clk 0:00:24.7]} 34... Re7 {[%clk 0:00:28.4]}
35. Qg3 {[%clk 0:00:22.7]} 35... Rae8 {[%clk 0:00:26.9]} 36. h3 {[%clk
0:00:18.3]} 36... Qd8 {[%clk 0:00:26.3]} 37. Kh1 {[%clk 0:00:09.7]} 37... Bf6
{[%clk 0:00:25.9]} 38. Qf2 {[%clk 0:00:10.1]} 38... h4 {[%clk 0:00:24.7]} 39.
Qf1 {[%clk 0:00:09.4]} 39... Kg7 {[%clk 0:00:24]} 40. Re3 {[%clk 0:00:09.3]}
40... Bg5 {[%clk 0:00:21.4]} 41. R3e2 {[%clk 0:00:09.5]} 41... Rd7 {[%clk
0:00:20]} 42. Qf2 {[%clk 0:00:08.7]} 42... Qf6 {[%clk 0:00:19.5]} 43. Qf1 {[%clk
0:00:08.1]} 43... Rde7 {[%clk 0:00:19.7]} 44. Qf2 {[%clk 0:00:08.6]} 44... Bh6
{[%clk 0:00:19.7]} 45. Qf1 {[%clk 0:00:09]} 45... Qf8 {[%clk 0:00:19.4]} 46. Qf2
{[%clk 0:00:09.4]} 46... Rd8 {[%clk 0:00:19.4]} 47. Nxd6 {[%clk 0:00:08.5]}
47... Rxd6 {[%clk 0:00:19]} 48. Rxe5 {[%clk 0:00:09]} 48... Rxe5 {[%clk
0:00:19.5]} 49. Rxe5 {[%clk 0:00:09.9]} 49... Qf6 {[%clk 0:00:20.2]} 50. Qe1
{[%clk 0:00:09.7]} 50... Bf4 {[%clk 0:00:18.5]} 51. Re2 {[%clk 0:00:04.5]} 51...
Bg3 {[%clk 0:00:18.6]} 52. Re7+ {[%clk 0:00:03.2]} 52... Kh6 {[%clk 0:00:18.2]}
53. Qe3+ {[%clk 0:00:02.3]} 53... f4 {[%clk 0:00:14.1]} 54. Qe2 {[%clk
0:00:01.7]} 54... Qb2 {[%clk 0:00:08.8]} 55. Bd1 {[%clk 0:00:01.6]} 55... Qd4
{[%clk 0:00:08.3]} 56. Re6 {[%clk 0:00:02.1]} 56... Rxe6 {[%clk 0:00:04.1]} 57.
dxe6 {[%clk 0:00:03]} 57... f3 {[%clk 0:00:05]} 58. Qxf3 {[%clk 0:00:02.8]}
58... Bd6 {[%clk 0:00:03.3]} 59. Qe2 {[%clk 0:00:03.3]} 59... Qf4 {[%clk
0:00:03.5]} 60. Kg1 {[%clk 0:00:03]} 60... Qh2+ {[%clk 0:00:04.1]} 61. Kf1
{[%clk 0:00:03.6]} 61... Qh1+ {[%clk 0:00:04.1]} 62. Kf2 {[%clk 0:00:04.2]}
62... Qh2 {[%clk 0:00:03.8]} 63. Qe3+ {[%clk 0:00:04.4]} 63... Kh7 {[%clk
0:00:02.9]} 64. e7 {[%clk 0:00:04.9]} 64... Bg3+ {[%clk 0:00:01.8]} 65. Kf3
{[%clk 0:00:04.7]} 65... Qh1 {[%clk 0:00:02.5]} 66. e8=Q {[%clk 0:00:04.9]}
66... Qxd1+ {[%clk 0:00:02.6]} 67. Ke4 {[%clk 0:00:04.7]} 67... Qb1+ {[%clk
0:00:02]} 68. Kd5 {[%clk 0:00:05.1]} 68... Qf5+ {[%clk 0:00:02.3]} 69. Kc6
{[%clk 0:00:05.4]} 69... Qf6+ {[%clk 0:00:03]} 70. Kb5 {[%clk 0:00:05.7]} 70...
Be5 {[%clk 0:00:01.1]} 71. Q3xe5 {[%clk 0:00:05.8]} 1-0